[Event "Titled Tuesday Blitz November 07 Early 2023"]
[White "Ambartsumova, Karina"]
[Black "Matthes, Aaron"]
[WhiteFideId "4166299"]
[BlackFideId "16227310"]
[WhiteElo "2609"]
[BlackElo "2350"]
[Result "1-0"]
[Round "2"]
[TimeControl "180+1"]
[Date "2023.11.07"]
[WhiteClock "0:00:33"]
[BlackClock "0:00:06"]
[Board "128"]

1. d4 {[%clk 0:03:00]}  d5 {[%clk 0:02:49]} 2. c4 {[%clk 0:03:00]}  e6 {[%clk 0:02:49]} 3. Nc3 {[%clk 0:03:00]}  Nf6 {[%clk 0:02:49]} 4. cxd5 {[%clk 0:03:00]}  exd5 {[%clk 0:02:48]} 5. Bg5 {[%clk 0:03:01]}  Be7 {[%clk 0:02:48]} 6. e3 {[%clk 0:03:00]}  c6 {[%clk 0:02:45]} 7. Bd3 {[%clk 0:03:00]}  O-O {[%clk 0:02:43]} 8. Qc2 {[%clk 0:02:59]}  Nbd7 {[%clk 0:02:44]} 9. h3 {[%clk 0:02:57]}  h6 {[%clk 0:02:34]} 10. Bf4 {[%clk 0:02:56]}  Ne8 {[%clk 0:02:35]} 11. Nf3 {[%clk 0:02:49]}  Bd6 {[%clk 0:02:35]} 12. O-O {[%clk 0:02:30]}  Bxf4 {[%clk 0:02:30]} 13. exf4 {[%clk 0:02:31]}  Nd6 {[%clk 0:02:31]} 14. Ne5 {[%clk 0:02:21]}  Nf6 {[%clk 0:02:18]} 15. Rad1 {[%clk 0:02:14]}  Nh5 {[%clk 0:02:10]} 16. Ne2 {[%clk 0:02:05]}  Qf6 {[%clk 0:02:09]} 17. Qd2 {[%clk 0:01:50]}  Qe7 {[%clk 0:02:01]} 18. g4 {[%clk 0:01:43]}  Nf6 {[%clk 0:01:58]} 19. Ng3 {[%clk 0:01:43]}  Nfe4 {[%clk 0:01:49]} 20. Qe3 {[%clk 0:01:26]}  Nxg3 {[%clk 0:01:45]} 21. Qxg3 {[%clk 0:01:21]}  Ne4 {[%clk 0:01:18]} 22. Qg2 {[%clk 0:01:16]}  Qb4 {[%clk 0:01:11]} 23. Bxe4 {[%clk 0:00:57]}  dxe4 {[%clk 0:01:12]} 24. b3 {[%clk 0:00:58]}  f6 {[%clk 0:00:56]} 25. Ng6 {[%clk 0:00:54]}  Re8 {[%clk 0:00:55]} 26. f5 {[%clk 0:00:48]}  b6 {[%clk 0:00:51]} 27. Rfe1 {[%clk 0:00:47]}  Bd7 {[%clk 0:00:34]} 28. Rxe4 {[%clk 0:00:42]}  Rxe4 {[%clk 0:00:35]} 29. Qxe4 {[%clk 0:00:43]}  Re8 {[%clk 0:00:35]} 30. Qf4 {[%clk 0:00:43]}  c5 {[%clk 0:00:30]} 31. d5 {[%clk 0:00:39]}  Re1+ {[%clk 0:00:16]} 32. Rxe1 {[%clk 0:00:38]}  Qxe1+ {[%clk 0:00:17]} 33. Kh2 {[%clk 0:00:39]}  Qd1 {[%clk 0:00:16]} 34. Qd6 {[%clk 0:00:36]}  Kh7 {[%clk 0:00:06]} 35. Qf8 {[%clk 0:00:33]} 1-0


[Site "https://www.chess.com"]

[Event "Titled Tuesday Blitz November 07 Early 2023"]
[White "Tsydypov, Zhamsaran"]
[Black "Horak, Martin"]
[WhiteFideId "4108566"]
[BlackFideId "367095"]
[WhiteElo "3007"]
[BlackElo "2519"]
[Result "1-0"]
[Round "2"]
[TimeControl "180+1"]
[Date "2023.11.07"]
[WhiteClock "0:01:25"]
[BlackClock "0:00:04"]
[Board "133"]

1. d4 {[%clk 0:02:21]}  Nf6 {[%clk 0:02:59]} 2. c4 {[%clk 0:02:19]}  c5 {[%clk 0:02:45]} 3. Nf3 {[%clk 0:02:17]}  cxd4 {[%clk 0:02:45]} 4. Nxd4 {[%clk 0:02:18]}  e5 {[%clk 0:02:46]} 5. Nc2 {[%clk 0:02:16]}  d5 {[%clk 0:02:45]} 6. cxd5 {[%clk 0:02:16]}  Qxd5 {[%clk 0:02:46]} 7. Qxd5 {[%clk 0:02:15]}  Nxd5 {[%clk 0:02:47]} 8. e4 {[%clk 0:02:09]}  Nb4 {[%clk 0:02:47]} 9. Ne3 {[%clk 0:02:09]}  Be6 {[%clk 0:02:35]} 10. a3 {[%clk 0:02:08]}  N4c6 {[%clk 0:02:35]} 11. Nc3 {[%clk 0:02:07]}  Nd4 {[%clk 0:02:29]} 12. Nb5 {[%clk 0:02:05]}  Nxb5 {[%clk 0:02:15]} 13. Bxb5+ {[%clk 0:02:04]}  Nc6 {[%clk 0:02:15]} 14. O-O {[%clk 0:02:02]}  O-O-O {[%clk 0:02:14]} 15. Bxc6 {[%clk 0:02:02]}  bxc6 {[%clk 0:02:14]} 16. b4 {[%clk 0:02:03]}  Be7 {[%clk 0:01:55]} 17. Bb2 {[%clk 0:02:02]}  f6 {[%clk 0:01:55]} 18. Rac1 {[%clk 0:02:02]}  Kb7 {[%clk 0:01:54]} 19. Rc2 {[%clk 0:02:02]}  Rc8 {[%clk 0:01:41]} 20. Rfc1 {[%clk 0:02:01]}  Rhd8 {[%clk 0:01:39]} 21. g3 {[%clk 0:01:59]}  Bf8 {[%clk 0:01:30]} 22. h4 {[%clk 0:01:58]}  h5 {[%clk 0:01:30]} 23. Kf1 {[%clk 0:01:58]}  Rc7 {[%clk 0:01:18]} 24. Ke2 {[%clk 0:01:58]}  Rdc8 {[%clk 0:01:18]} 25. f4 {[%clk 0:01:54]}  exf4 {[%clk 0:01:02]} 26. gxf4 {[%clk 0:01:55]}  c5 {[%clk 0:01:03]} 27. b5 {[%clk 0:01:55]}  c4 {[%clk 0:01:02]} 28. Kf3 {[%clk 0:01:51]}  Kb6 {[%clk 0:00:54]} 29. a4 {[%clk 0:01:49]}  Bb4 {[%clk 0:00:46]} 30. Bd4+ {[%clk 0:01:48]}  Ka5 {[%clk 0:00:32]} 31. Rb1 {[%clk 0:01:45]}  Bc5 {[%clk 0:00:26]} 32. Bc3+ {[%clk 0:01:43]}  Kb6 {[%clk 0:00:26]} 33. a5+ {[%clk 0:01:41]}  Kb7 {[%clk 0:00:26]} 34. a6+ {[%clk 0:01:40]}  Kb8 {[%clk 0:00:20]} 35. Ba5 {[%clk 0:01:38]}  Rd7 {[%clk 0:00:17]} 36. Nd5 {[%clk 0:01:34]}  Bxd5 {[%clk 0:00:15]} 37. exd5 {[%clk 0:01:34]}  Rxd5 {[%clk 0:00:14]} 38. Rxc4 {[%clk 0:01:35]}  Bb6 {[%clk 0:00:11]} 39. Rxc8+ {[%clk 0:01:33]}  Kxc8 {[%clk 0:00:12]} 40. Bxb6 {[%clk 0:01:34]}  axb6 {[%clk 0:00:13]} 41. Ke4 {[%clk 0:01:33]}  Rc5 {[%clk 0:00:11]} 42. Rg1 {[%clk 0:01:33]}  Rxb5 {[%clk 0:00:10]} 43. Rxg7 {[%clk 0:01:34]}  Kb8 {[%clk 0:00:10]} 44. Rf7 {[%clk 0:01:33]}  Rb1 {[%clk 0:00:07]} 45. Kf5 {[%clk 0:01:28]}  Rh1 {[%clk 0:00:06]} 46. Kxf6 {[%clk 0:01:27]}  Rxh4 {[%clk 0:00:06]} 47. Rb7+ {[%clk 0:01:27]}  Ka8 {[%clk 0:00:07]} 48. f5 {[%clk 0:01:24]}  Rh1 {[%clk 0:00:05]} 49. Kg5 {[%clk 0:01:23]}  h4 {[%clk 0:00:05]} 50. f6 {[%clk 0:01:24]}  Rf1 {[%clk 0:00:04]} 51. Rh7 {[%clk 0:01:24]}  h3 {[%clk 0:00:02]} 52. Rxh3 {[%clk 0:01:24]}  Ka7 {[%clk 0:00:03]} 53. Rh4 {[%clk 0:01:24]}  Rxf6 {[%clk 0:00:01]} 54. Kxf6 {[%clk 0:01:24]}  Kxa6 {[%clk 0:00:02]} 55. Ke5 {[%clk 0:01:25]}  Ka5 {[%clk 0:00:03]} 56. Kd4 {[%clk 0:01:25]}  b5 {[%clk 0:00:04]} 57. Kc3 {[%clk 0:01:26]}  b4+ {[%clk 0:00:04]} 58. Rxb4 {[%clk 0:01:25]} 1-0


[Site "https://www.chess.com"]

[Event "Titled Tuesday Blitz November 07 Early 2023"]
[White "Galchenko, Matvey"]
[Black "Idnani, Taran"]
[WhiteFideId "24175480"]
[BlackFideId "2071002"]
[WhiteElo "2948"]
[BlackElo "2406"]
[Result "1-0"]
[Round "2"]
[TimeControl "180+1"]
[Date "2023.11.07"]
[WhiteClock "0:01:15"]
[BlackClock "0:01:25"]
[Board "135"]

1. e4 {[%clk 0:02:53]}  c5 {[%clk 0:02:58]} 2. Nc3 {[%clk 0:02:50]}  Nc6 {[%clk 0:02:58]} 3. Bb5 {[%clk 0:02:50]}  d6 {[%clk 0:02:57]} 4. f4 {[%clk 0:02:43]}  g6 {[%clk 0:02:56]} 5. Nf3 {[%clk 0:02:43]}  Bg7 {[%clk 0:02:56]} 6. Bxc6+ {[%clk 0:02:43]}  bxc6 {[%clk 0:02:56]} 7. O-O {[%clk 0:02:44]}  e6 {[%clk 0:02:56]} 8. d3 {[%clk 0:02:44]}  Ne7 {[%clk 0:02:56]} 9. Qe1 {[%clk 0:02:44]}  O-O {[%clk 0:02:55]} 10. Qh4 {[%clk 0:02:44]}  f5 {[%clk 0:02:51]} 11. Bd2 {[%clk 0:02:41]}  e5 {[%clk 0:02:39]} 12. fxe5 {[%clk 0:02:40]}  dxe5 {[%clk 0:02:40]} 13. Bg5 {[%clk 0:02:38]}  Re8 {[%clk 0:02:40]} 14. Rae1 {[%clk 0:02:33]}  f4 {[%clk 0:02:38]} 15. Bf6 {[%clk 0:02:25]}  Qd6 {[%clk 0:02:30]} 16. Bg5 {[%clk 0:02:08]}  Be6 {[%clk 0:02:16]} 17. b3 {[%clk 0:02:00]}  Nc8 {[%clk 0:01:49]} 18. Na4 {[%clk 0:01:51]}  Nb6 {[%clk 0:01:44]} 19. Nb2 {[%clk 0:01:49]}  Nd7 {[%clk 0:01:41]} 20. Nc4 {[%clk 0:01:37]}  Qf8 {[%clk 0:01:37]} 21. g3 {[%clk 0:01:15]}  h6 {[%clk 0:01:33]} 22. gxf4 {[%clk 0:01:16]}  hxg5 {[%clk 0:01:30]} 23. Nxg5 {[%clk 0:01:17]}  Bxc4 {[%clk 0:01:25]} 24. Qh7# {[%clk 0:01:15]} 1-0


[Site "https://www.chess.com"]

[Event "Titled Tuesday Blitz November 07 Early 2023"]
[White "AlmasRakhmatullaev"]
[Black "La Villa Rivas, Marlon Javier"]
[BlackFideId "3519546"]
[WhiteElo "2885"]
[BlackElo "2401"]
[Result "1-0"]
[Round "2"]
[TimeControl "180+1"]
[Date "2023.11.07"]
[WhiteClock "0:02:02"]
[BlackClock "0:00:42"]
[Board "139"]

1. e4 {[%clk 0:02:57]}  e6 {[%clk 0:02:56]} 2. d4 {[%clk 0:02:57]}  d5 {[%clk 0:02:55]} 3. Nc3 {[%clk 0:02:57]}  Bb4 {[%clk 0:02:54]} 4. Ne2 {[%clk 0:02:57]}  dxe4 {[%clk 0:02:53]} 5. a3 {[%clk 0:02:56]}  Bxc3+ {[%clk 0:02:53]} 6. Nxc3 {[%clk 0:02:57]}  Nc6 {[%clk 0:02:53]} 7. d5 {[%clk 0:02:51]}  exd5 {[%clk 0:02:52]} 8. Qxd5 {[%clk 0:02:52]}  Be6 {[%clk 0:02:52]} 9. Qxe4 {[%clk 0:02:52]}  Nf6 {[%clk 0:02:52]} 10. Qa4 {[%clk 0:02:53]}  Qd4 {[%clk 0:02:46]} 11. Bb5 {[%clk 0:02:49]}  Qxa4 {[%clk 0:02:45]} 12. Nxa4 {[%clk 0:02:47]}  O-O-O {[%clk 0:02:46]} 13. Bxc6 {[%clk 0:02:39]}  bxc6 {[%clk 0:02:47]} 14. O-O {[%clk 0:02:40]}  Bc4 {[%clk 0:02:32]} 15. Re1 {[%clk 0:02:39]}  Rhe8 {[%clk 0:02:31]} 16. Bg5 {[%clk 0:02:37]}  Re6 {[%clk 0:02:07]} 17. Bxf6 {[%clk 0:02:32]}  Rxf6 {[%clk 0:02:06]} 18. Nc5 {[%clk 0:02:28]}  Rf5 {[%clk 0:02:00]} 19. b4 {[%clk 0:02:24]}  a5 {[%clk 0:01:45]} 20. f3 {[%clk 0:02:20]}  Rfd5 {[%clk 0:01:36]} 21. Re4 {[%clk 0:02:13]}  Rd1+ {[%clk 0:01:28]} 22. Rxd1 {[%clk 0:02:13]}  Rxd1+ {[%clk 0:01:29]} 23. Kf2 {[%clk 0:02:13]}  Rd2+ {[%clk 0:01:21]} 24. Ke1 {[%clk 0:02:11]}  f5 {[%clk 0:00:51]} 25. Rxc4 {[%clk 0:02:06]}  Rxg2 {[%clk 0:00:51]} 26. bxa5 {[%clk 0:02:05]}  Rxh2 {[%clk 0:00:51]} 27. a6 {[%clk 0:02:04]}  Kb8 {[%clk 0:00:51]} 28. Rb4+ {[%clk 0:02:04]}  Ka8 {[%clk 0:00:50]} 29. Rb7 {[%clk 0:02:02]}  Rxc2 {[%clk 0:00:42]} 30. Ne6 {[%clk 0:02:02]} 1-0


[Site "https://www.chess.com"]

[Event "Titled Tuesday Blitz November 07 Early 2023"]
[White "UK_23"]
[Black "Kravtsiv, Martyn"]
[BlackFideId "14113147"]
[WhiteElo "2400"]
[BlackElo "2855"]
[Result "0-1"]
[Round "2"]
[TimeControl "180+1"]
[Date "2023.11.07"]
[WhiteClock "0:00:10"]
[BlackClock "0:01:18"]
[Board "140"]

1. e4 {[%clk 0:01:03]}  d6 {[%clk 0:02:30]} 2. d4 {[%clk 0:01:02]}  Nf6 {[%clk 0:02:30]} 3. Nc3 {[%clk 0:01:02]}  g6 {[%clk 0:02:30]} 4. Nf3 {[%clk 0:01:01]}  c6 {[%clk 0:02:30]} 5. Be2 {[%clk 0:00:59]}  Bg7 {[%clk 0:02:28]} 6. O-O {[%clk 0:00:59]}  O-O {[%clk 0:02:28]} 7. h3 {[%clk 0:00:59]}  Nbd7 {[%clk 0:02:27]} 8. Re1 {[%clk 0:00:59]}  e5 {[%clk 0:02:19]} 9. dxe5 {[%clk 0:00:58]}  dxe5 {[%clk 0:02:16]} 10. Be3 {[%clk 0:00:57]}  Qc7 {[%clk 0:02:15]} 11. a4 {[%clk 0:00:57]}  Rd8 {[%clk 0:02:15]} 12. Qc1 {[%clk 0:00:56]}  Nf8 {[%clk 0:02:14]} 13. Bh6 {[%clk 0:00:53]}  Ne6 {[%clk 0:02:13]} 14. Bxg7 {[%clk 0:00:53]}  Kxg7 {[%clk 0:02:14]} 15. g3 {[%clk 0:00:51]}  Nd4 {[%clk 0:02:13]} 16. Kg2 {[%clk 0:00:51]}  Be6 {[%clk 0:02:11]} 17. a5 {[%clk 0:00:46]}  h6 {[%clk 0:02:09]} 18. Ng1 {[%clk 0:00:31]}  c5 {[%clk 0:01:57]} 19. Nb5 {[%clk 0:00:27]}  Nxb5 {[%clk 0:01:53]} 20. Bxb5 {[%clk 0:00:28]}  c4 {[%clk 0:01:53]} 21. c3 {[%clk 0:00:26]}  Rd3 {[%clk 0:01:45]} 22. Ba4 {[%clk 0:00:25]}  Rad8 {[%clk 0:01:43]} 23. Bc2 {[%clk 0:00:25]}  Rd2 {[%clk 0:01:18]} 24. Nf3 {[%clk 0:00:15]}  Bxh3+ {[%clk 0:01:19]} 25. Kxh3 {[%clk 0:00:16]}  Rxf2 {[%clk 0:01:18]} 26. Qe3 {[%clk 0:00:10]}  Qc8+ {[%clk 0:01:18]} 0-1


[Site "https://www.chess.com"]

[Event "Titled Tuesday Blitz November 07 Early 2023"]
[White "Szpar, Milosz"]
[Black "Dmitrenko, Viktor"]
[WhiteFideId "1184989"]
[BlackFideId "14110270"]
[WhiteElo "2799"]
[BlackElo "2391"]
[Result "1-0"]
[Round "2"]
[TimeControl "180+1"]
[Date "2023.11.07"]
[WhiteClock "0:01:42"]
[BlackClock "0:00:00"]
[Board "143"]

1. e4 {[%clk 0:03:00]}  c5 {[%clk 0:02:58]} 2. d4 {[%clk 0:03:00]}  cxd4 {[%clk 0:02:57]} 3. c3 {[%clk 0:03:01]}  d5 {[%clk 0:02:57]} 4. exd5 {[%clk 0:03:00]}  Nf6 {[%clk 0:02:54]} 5. Nf3 {[%clk 0:03:00]}  Nxd5 {[%clk 0:02:43]} 6. Nxd4 {[%clk 0:03:00]}  e6 {[%clk 0:02:39]} 7. g3 {[%clk 0:02:59]}  Be7 {[%clk 0:02:37]} 8. Bg2 {[%clk 0:02:59]}  O-O {[%clk 0:02:37]} 9. O-O {[%clk 0:03:00]}  Bf6 {[%clk 0:02:10]} 10. Nc2 {[%clk 0:02:32]}  Nc6 {[%clk 0:02:09]} 11. Qe2 {[%clk 0:02:28]}  Nc7 {[%clk 0:01:20]} 12. Rd1 {[%clk 0:02:27]}  Qe7 {[%clk 0:01:20]} 13. Nd2 {[%clk 0:02:18]}  g6 {[%clk 0:01:17]} 14. Ne4 {[%clk 0:02:18]}  Bg7 {[%clk 0:01:18]} 15. Bg5 {[%clk 0:02:17]}  f6 {[%clk 0:01:16]} 16. Be3 {[%clk 0:02:17]}  Na6 {[%clk 0:00:50]} 17. b4 {[%clk 0:02:14]}  f5 {[%clk 0:00:19]} 18. Nd6 {[%clk 0:02:05]}  Bxc3 {[%clk 0:00:16]} 19. b5 {[%clk 0:02:05]}  Bxa1 {[%clk 0:00:13]} 20. bxc6 {[%clk 0:02:04]}  bxc6 {[%clk 0:00:05]} 21. Nxa1 {[%clk 0:02:03]}  Rd8 {[%clk 0:00:04]} 22. Bf4 {[%clk 0:01:50]}  e5 {[%clk 0:00:04]} 23. Bxe5 {[%clk 0:01:48]}  Bd7 {[%clk 0:00:02]} 24. f4 {[%clk 0:01:45]}  Nc5 {[%clk 0:00:02]} 25. Qc4+ {[%clk 0:01:42]}  Ne6 {[%clk 0:00:02]} 26. Nb3 {[%clk 0:01:42]}  Rab8 {[%clk 0:00:02]} 27. Nc5 {[%clk 0:01:42]}  Rb2 {[%clk 0:00:00]} 28. Bxb2 {[%clk 0:01:42]} 1-0


[Site "https://www.chess.com"]

[Event "Titled Tuesday Blitz November 07 Early 2023"]
[White "Nazari, Arad"]
[Black "Slovineanu, Viacheslav"]
[WhiteFideId "12577324"]
[BlackFideId "13900510"]
[WhiteElo "2780"]
[BlackElo "2388"]
[Result "1-0"]
[Round "2"]
[TimeControl "180+1"]
[Date "2023.11.07"]
[WhiteClock "0:00:12"]
[BlackClock "0:00:00"]
[Board "145"]

1. e4 {[%clk 0:03:00]}  c6 {[%clk 0:02:59]} 2. Nf3 {[%clk 0:03:01]}  d5 {[%clk 0:02:59]} 3. Nc3 {[%clk 0:03:02]}  dxe4 {[%clk 0:02:58]} 4. Nxe4 {[%clk 0:03:02]}  Nf6 {[%clk 0:02:59]} 5. Qe2 {[%clk 0:03:03]}  Nxe4 {[%clk 0:02:52]} 6. Qxe4 {[%clk 0:03:04]}  Nd7 {[%clk 0:02:39]} 7. Bc4 {[%clk 0:03:03]}  Nf6 {[%clk 0:02:39]} 8. Ne5 {[%clk 0:03:04]}  e6 {[%clk 0:02:34]} 9. Qe2 {[%clk 0:03:05]}  Bd6 {[%clk 0:02:31]} 10. O-O {[%clk 0:03:04]}  O-O {[%clk 0:02:26]} 11. d4 {[%clk 0:03:05]}  c5 {[%clk 0:02:18]} 12. dxc5 {[%clk 0:03:01]}  Bxc5 {[%clk 0:02:18]} 13. Bg5 {[%clk 0:03:02]}  Be7 {[%clk 0:02:14]} 14. Bd3 {[%clk 0:02:48]}  Qc7 {[%clk 0:01:55]} 15. Rfe1 {[%clk 0:02:45]}  Bd7 {[%clk 0:01:50]} 16. Rad1 {[%clk 0:02:38]}  Rad8 {[%clk 0:01:49]} 17. Bf4 {[%clk 0:02:23]}  Qc8 {[%clk 0:01:40]} 18. Qf3 {[%clk 0:02:13]}  Bc6 {[%clk 0:01:35]} 19. Nxc6 {[%clk 0:02:13]}  Qxc6 {[%clk 0:01:35]} 20. Qxc6 {[%clk 0:02:13]}  bxc6 {[%clk 0:01:35]} 21. Be3 {[%clk 0:02:00]}  Rd7 {[%clk 0:01:35]} 22. Ba6 {[%clk 0:01:44]}  Rfd8 {[%clk 0:01:30]} 23. Rxd7 {[%clk 0:01:43]}  Rxd7 {[%clk 0:01:30]} 24. c4 {[%clk 0:01:41]}  Kf8 {[%clk 0:01:19]} 25. f3 {[%clk 0:01:39]}  Bb4 {[%clk 0:01:10]} 26. Rb1 {[%clk 0:01:36]}  Ke8 {[%clk 0:00:51]} 27. a3 {[%clk 0:01:27]}  Ba5 {[%clk 0:00:49]} 28. Kf2 {[%clk 0:01:11]}  Bb6 {[%clk 0:00:43]} 29. c5 {[%clk 0:01:11]}  Bc7 {[%clk 0:00:42]} 30. b4 {[%clk 0:00:51]}  Nd5 {[%clk 0:00:38]} 31. g3 {[%clk 0:00:48]}  Nxe3 {[%clk 0:00:32]} 32. Kxe3 {[%clk 0:00:49]}  Be5 {[%clk 0:00:23]} 33. f4 {[%clk 0:00:45]}  Bd4+ {[%clk 0:00:23]} 34. Kf3 {[%clk 0:00:41]}  Kd8 {[%clk 0:00:22]} 35. a4 {[%clk 0:00:36]}  f5 {[%clk 0:00:16]} 36. Bc4 {[%clk 0:00:29]}  e5 {[%clk 0:00:14]} 37. fxe5 {[%clk 0:00:29]}  Bxe5 {[%clk 0:00:14]} 38. b5 {[%clk 0:00:28]}  Rd4 {[%clk 0:00:10]} 39. Be6 {[%clk 0:00:20]}  Rxa4 {[%clk 0:00:10]} 40. bxc6 {[%clk 0:00:20]}  Kc7 {[%clk 0:00:10]} 41. Bd7 {[%clk 0:00:20]}  Ra3+ {[%clk 0:00:08]} 42. Kg2 {[%clk 0:00:20]}  Ra2+ {[%clk 0:00:09]} 43. Kh3 {[%clk 0:00:20]}  Rb2 {[%clk 0:00:09]} 44. Re1 {[%clk 0:00:21]}  Bd4 {[%clk 0:00:06]} 45. Re7 {[%clk 0:00:18]}  Bg1 {[%clk 0:00:06]} 46. Kh4 {[%clk 0:00:13]}  Rxh2+ {[%clk 0:00:04]} 47. Kg5 {[%clk 0:00:13]}  Be3+ {[%clk 0:00:00]} 48. Rxe3 {[%clk 0:00:12]} 1-0


[Site "https://www.chess.com"]

[Event "Titled Tuesday Blitz November 07 Early 2023"]
[White "De Silva, L M S T"]
[Black "EvgenyBurmakin"]
[WhiteFideId "9953698"]
[WhiteElo "2709"]
[BlackElo "2382"]
[Result "1-0"]
[Round "2"]
[TimeControl "180+1"]
[Date "2023.11.07"]
[WhiteClock "0:00:39"]
[BlackClock "0:00:00"]
[Board "150"]

1. d4 {[%clk 0:03:00]}  Nf6 {[%clk 0:02:59]} 2. c4 {[%clk 0:03:00]}  g6 {[%clk 0:02:58]} 3. Qc2 {[%clk 0:02:58]}  Bg7 {[%clk 0:02:56]} 4. e4 {[%clk 0:02:58]}  d6 {[%clk 0:02:56]} 5. f4 {[%clk 0:02:57]}  O-O {[%clk 0:02:35]} 6. Nf3 {[%clk 0:02:56]}  c5 {[%clk 0:02:30]} 7. dxc5 {[%clk 0:02:40]}  Qa5+ {[%clk 0:02:25]} 8. Nbd2 {[%clk 0:02:36]}  Qxc5 {[%clk 0:02:23]} 9. Nb3 {[%clk 0:02:34]}  Qc7 {[%clk 0:02:21]} 10. Be2 {[%clk 0:02:30]}  Nc6 {[%clk 0:02:21]} 11. Bd2 {[%clk 0:02:21]}  Bd7 {[%clk 0:02:05]} 12. O-O {[%clk 0:02:19]}  Rac8 {[%clk 0:02:03]} 13. Rfc1 {[%clk 0:02:18]}  Qb6+ {[%clk 0:02:00]} 14. c5 {[%clk 0:02:06]}  dxc5 {[%clk 0:02:00]} 15. Nxc5 {[%clk 0:01:56]}  Bg4 {[%clk 0:01:49]} 16. Be3 {[%clk 0:01:55]}  Nb4 {[%clk 0:01:13]} 17. Qc4 {[%clk 0:01:51]}  Nd7 {[%clk 0:00:51]} 18. Kf2 {[%clk 0:01:15]}  Bxf3 {[%clk 0:00:43]} 19. Kxf3 {[%clk 0:01:15]}  Nxc5 {[%clk 0:00:11]} 20. Bxc5 {[%clk 0:01:13]}  Rxc5 {[%clk 0:00:09]} 21. Qxc5 {[%clk 0:01:14]}  Bxb2 {[%clk 0:00:07]} 22. Rab1 {[%clk 0:00:44]}  Bxc1 {[%clk 0:00:06]} 23. Qxc1 {[%clk 0:00:44]}  Qa5 {[%clk 0:00:04]} 24. a3 {[%clk 0:00:44]}  Nc6 {[%clk 0:00:03]} 25. Qe3 {[%clk 0:00:39]}  b6 {[%clk 0:00:00]} 26. Rb5 {[%clk 0:00:39]} 1-0


[Site "https://www.chess.com"]

[Event "Titled Tuesday Blitz November 07 Early 2023"]
[White "vlajkovicS"]
[Black "Spichkin, Alexander"]
[BlackFideId "4144074"]
[WhiteElo "2690"]
[BlackElo "2370"]
[Result "1-0"]
[Round "2"]
[TimeControl "180+1"]
[Date "2023.11.07"]
[WhiteClock "0:01:33"]
[BlackClock "0:01:16"]
[Board "153"]

1. d4 {[%clk 0:02:59]}  d6 {[%clk 0:02:57]} 2. Nf3 {[%clk 0:02:56]}  c6 {[%clk 0:02:53]} 3. c4 {[%clk 0:02:55]}  Nd7 {[%clk 0:02:53]} 4. Nc3 {[%clk 0:02:55]}  h6 {[%clk 0:02:54]} 5. e4 {[%clk 0:02:55]}  Qa5 {[%clk 0:02:54]} 6. Be2 {[%clk 0:02:54]}  g5 {[%clk 0:02:53]} 7. h3 {[%clk 0:02:54]}  Bg7 {[%clk 0:02:54]} 8. a3 {[%clk 0:02:54]}  Nf8 {[%clk 0:02:54]} 9. b4 {[%clk 0:02:54]}  Qc7 {[%clk 0:02:54]} 10. Be3 {[%clk 0:02:54]}  Nf6 {[%clk 0:02:53]} 11. Rc1 {[%clk 0:02:53]}  g4 {[%clk 0:02:53]} 12. Nh4 {[%clk 0:02:46]}  gxh3 {[%clk 0:02:39]} 13. gxh3 {[%clk 0:02:47]}  Ne6 {[%clk 0:02:40]} 14. Nf5 {[%clk 0:02:47]}  Bf8 {[%clk 0:02:39]} 15. h4 {[%clk 0:02:31]}  h5 {[%clk 0:02:33]} 16. Rg1 {[%clk 0:02:24]}  d5 {[%clk 0:02:21]} 17. e5 {[%clk 0:02:20]}  Ne4 {[%clk 0:02:17]} 18. cxd5 {[%clk 0:02:18]}  Nxc3 {[%clk 0:02:04]} 19. Rxc3 {[%clk 0:02:19]}  Nd8 {[%clk 0:02:03]} 20. Ng7+ {[%clk 0:02:05]}  Bxg7 {[%clk 0:02:01]} 21. Rxg7 {[%clk 0:02:06]}  Qd7 {[%clk 0:01:55]} 22. e6 {[%clk 0:02:06]}  fxe6 {[%clk 0:01:50]} 23. Bxh5+ {[%clk 0:02:05]}  Kf8 {[%clk 0:01:50]} 24. Rg5 {[%clk 0:01:43]}  Rh6 {[%clk 0:01:33]} 25. Rg8+ {[%clk 0:01:36]}  Kxg8 {[%clk 0:01:29]} 26. Bxh6 {[%clk 0:01:37]}  exd5 {[%clk 0:01:22]} 27. Rg3+ {[%clk 0:01:36]}  Kh8 {[%clk 0:01:22]} 28. Bg7+ {[%clk 0:01:36]}  Kh7 {[%clk 0:01:22]} 29. Qd3+ {[%clk 0:01:36]}  Qf5 {[%clk 0:01:21]} 30. Bg6+ {[%clk 0:01:36]}  Kxg7 {[%clk 0:01:20]} 31. Bxf5+ {[%clk 0:01:35]}  Kf6 {[%clk 0:01:20]} 32. Bxc8 {[%clk 0:01:33]}  Rxc8 {[%clk 0:01:19]} 33. Qf3+ {[%clk 0:01:33]}  Ke6 {[%clk 0:01:19]} 34. Qg4+ {[%clk 0:01:33]}  Kd6 {[%clk 0:01:19]} 35. Qxc8 {[%clk 0:01:34]}  Ne6 {[%clk 0:01:16]} 36. Rg6 {[%clk 0:01:33]} 1-0


[Site "https://www.chess.com"]